[Event "*** Titled Tuesday Blitz"]
[Site "Chess.com"]
[Date "2021.03.30"]
[Round "4"]
[White "zacachess"]
[Black "LenkaPtacnikova"]
[Result "1-0"]
[WhiteElo "2397"]
[BlackElo "2175"]
[TimeControl "180+1"]
[EndTime "10:39:58 PDT"]
[Termination "zacachess won on time"]

1. e4 {[%clk 0:03:00.9]} 1... c5 {[%clk 0:02:56.9]} 2. Nf3 {[%clk 0:03:00.8]}
2... e6 {[%clk 0:02:54.5]} 3. d4 {[%clk 0:03:00.8]} 3... cxd4 {[%clk 0:02:54.6]}
4. Nxd4 {[%clk 0:03:01.7]} 4... Nf6 {[%clk 0:02:54.8]} 5. Nc3 {[%clk 0:03:01.6]}
5... Nc6 {[%clk 0:02:55.3]} 6. Nxc6 {[%clk 0:03:01]} 6... bxc6 {[%clk
0:02:54.9]} 7. e5 {[%clk 0:03:01.5]} 7... Nd5 {[%clk 0:02:55.5]} 8. Ne4 {[%clk
0:03:02]} 8... Qc7 {[%clk 0:02:54.2]} 9. f4 {[%clk 0:03:01.4]} 9... Ba6 {[%clk
0:02:47.5]} 10. c4 {[%clk 0:02:20.8]} 10... f5 {[%clk 0:02:35.8]} 11. exf6
{[%clk 0:02:09.7]} 11... Nxf6 {[%clk 0:02:35]} 12. Nxf6+ {[%clk 0:02:06.8]}
12... gxf6 {[%clk 0:02:35.1]} 13. Qh5+ {[%clk 0:02:06.6]} 13... Kd8 {[%clk
0:02:13.6]} 14. Bd2 {[%clk 0:02:06.5]} 14... Rb8 {[%clk 0:02:10.1]} 15. Ba5
{[%clk 0:02:02.7]} 15... Bb4+ {[%clk 0:02:10]} 16. Bxb4 {[%clk 0:01:59.6]} 16...
Rxb4 {[%clk 0:02:10]} 17. Qh4 {[%clk 0:01:40.7]} 17... Ke7 {[%clk 0:01:52]} 18.
Qg3 {[%clk 0:01:15.3]} 18... Rf8 {[%clk 0:01:41.1]} 19. b3 {[%clk 0:01:14.7]}
19... Qa5 {[%clk 0:01:34.5]} 20. Qc3 {[%clk 0:01:02.8]} 20... Qc5 {[%clk
0:01:19.4]} 21. a3 {[%clk 0:00:41.4]} 21... Rbb8 {[%clk 0:01:17.9]} 22. b4
{[%clk 0:00:41.6]} 22... Qd6 {[%clk 0:01:13.5]} 23. c5 {[%clk 0:00:37.7]} 23...
Qxf4 {[%clk 0:01:13.5]} 24. Bxa6 {[%clk 0:00:36.4]} 24... Qe4+ {[%clk
0:01:13.5]} 25. Be2 {[%clk 0:00:20.5]} 25... Rg8 {[%clk 0:01:05.4]} 26. Qf3
{[%clk 0:00:19.5]} 26... Qe5 {[%clk 0:01:03.5]} 27. O-O {[%clk 0:00:17.9]} 27...
Rg6 {[%clk 0:01:00]} 28. Bd3 {[%clk 0:00:16.7]} 28... Rh6 {[%clk 0:00:57.4]} 29.
g3 {[%clk 0:00:15.6]} 29... Rg8 {[%clk 0:00:56.7]} 30. Rae1 {[%clk 0:00:15.4]}
30... Qd4+ {[%clk 0:00:56.4]} 31. Kg2 {[%clk 0:00:13.3]} 31... f5 {[%clk
0:00:54.9]} 32. Bxf5 {[%clk 0:00:12.1]} 32... Rf8 {[%clk 0:00:42.8]} 33. Qe4
{[%clk 0:00:11.3]} 33... Qb2+ {[%clk 0:00:32.6]} 34. Re2 {[%clk 0:00:10.8]}
34... Qxa3 {[%clk 0:00:30.3]} 35. Bg4 {[%clk 0:00:08.5]} 35... Rxf1 {[%clk
0:00:26.2]} 36. Kxf1 {[%clk 0:00:09.4]} 36... Qc1+ {[%clk 0:00:20.7]} 37. Kg2
{[%clk 0:00:08.8]} 37... Qc3 {[%clk 0:00:18.2]} 38. Rf2 {[%clk 0:00:07.5]} 38...
Qg7 {[%clk 0:00:16.2]} 39. Qf3 {[%clk 0:00:07.2]} 39... Rg6 {[%clk 0:00:12.1]}
40. Bh3 {[%clk 0:00:07.1]} 40... Rg5 {[%clk 0:00:12.4]} 41. Qf4 {[%clk
0:00:07.1]} 41... Rd5 {[%clk 0:00:11.9]} 42. Qh4+ {[%clk 0:00:06.1]} 42... Ke8
{[%clk 0:00:11]} 43. Qf4 {[%clk 0:00:06]} 43... Rd4 {[%clk 0:00:08.3]} 44. Qb8+
{[%clk 0:00:04.5]} 44... Ke7 {[%clk 0:00:08.7]} 45. Qxa7 {[%clk 0:00:03.8]}
45... Rxb4 {[%clk 0:00:08.8]} 46. Qa2 {[%clk 0:00:03.5]} 46... Re4 {[%clk
0:00:05.2]} 47. Qd2 {[%clk 0:00:03.3]} 47... Rc4 {[%clk 0:00:04.8]} 48. Qe3
{[%clk 0:00:02.2]} 1-0

[Event "*** Titled Tuesday Blitz"]
[Site "Chess.com"]
[Date "2021.03.30"]
[Round "4"]
[White "ChessWarrior3"]
[Black "Politov_Pavel"]
[Result "1-0"]
[WhiteElo "2133"]
[BlackElo "2372"]
[TimeControl "180+1"]
[EndTime "10:39:58 PDT"]
[Termination "ChessWarrior3 won on time"]

1. e4 {[%clk 0:03:00.9]} 1... Nc6 {[%clk 0:02:59.2]} 2. d4 {[%clk 0:02:59]} 2...
d5 {[%clk 0:02:59.6]} 3. e5 {[%clk 0:02:56.2]} 3... Bf5 {[%clk 0:02:58]} 4. h4
{[%clk 0:02:49]} 4... Qd7 {[%clk 0:02:55.1]} 5. Be2 {[%clk 0:02:43.1]} 5... Nb4
{[%clk 0:02:42.1]} 6. Na3 {[%clk 0:02:40.5]} 6... h6 {[%clk 0:02:30.2]} 7. g4
{[%clk 0:02:37.4]} 7... Be4 {[%clk 0:02:28.9]} 8. f3 {[%clk 0:02:32]} 8... Bh7
{[%clk 0:02:28.2]} 9. c3 {[%clk 0:02:31.4]} 9... Nc6 {[%clk 0:02:28]} 10. h5
{[%clk 0:02:29.7]} 10... O-O-O {[%clk 0:02:26.2]} 11. Bd3 {[%clk 0:02:27.7]}
11... Bxd3 {[%clk 0:02:25.1]} 12. Qxd3 {[%clk 0:02:28.3]} 12... f6 {[%clk
0:02:22.3]} 13. exf6 {[%clk 0:02:21.5]} 13... gxf6 {[%clk 0:02:16.7]} 14. Nc2
{[%clk 0:02:19.2]} 14... e5 {[%clk 0:02:16.8]} 15. Be3 {[%clk 0:02:14.9]} 15...
e4 {[%clk 0:01:55.3]} 16. fxe4 {[%clk 0:02:09.2]} 16... Qxg4 {[%clk 0:01:55.8]}
17. exd5 {[%clk 0:02:06.9]} 17... Qg3+ {[%clk 0:01:52.8]} 18. Kd1 {[%clk
0:02:05]} 18... Rxd5 {[%clk 0:01:40.3]} 19. Qe4 {[%clk 0:02:03]} 19... Nge7
{[%clk 0:01:32]} 20. Nf3 {[%clk 0:01:56.8]} 20... f5 {[%clk 0:01:06.2]} 21. Qf4
{[%clk 0:01:56.4]} 21... Rg8 {[%clk 0:00:48.3]} 22. Rg1 {[%clk 0:01:47.3]} 22...
Qxf4 {[%clk 0:00:46.2]} 23. Bxf4 {[%clk 0:01:46.2]} 23... Rxg1+ {[%clk
0:00:44.9]} 24. Nxg1 {[%clk 0:01:45.5]} 24... Rd8 {[%clk 0:00:22.4]} 25. Nf3
{[%clk 0:01:45.5]} 25... Nd5 {[%clk 0:00:22.5]} 26. Bh2 {[%clk 0:01:40.3]} 26...
Bd6 {[%clk 0:00:17.2]} 27. Bxd6 {[%clk 0:01:40.1]} 27... cxd6 {[%clk 0:00:18.1]}
28. Kd2 {[%clk 0:01:35.3]} 28... Nf4 {[%clk 0:00:16.9]} 29. Ke3 {[%clk 0:01:34]}
29... Nxh5 {[%clk 0:00:15.4]} 30. Rh1 {[%clk 0:01:32.6]} 30... f4+ {[%clk
0:00:13.5]} 31. Ke4 {[%clk 0:01:29.7]} 31... Re8+ {[%clk 0:00:12.4]} 32. Kd5
{[%clk 0:01:29.4]} 32... Nf6+ {[%clk 0:00:08]} 33. Kxd6 {[%clk 0:01:27.4]} 33...
h5 {[%clk 0:00:08.3]} 34. Re1 {[%clk 0:01:21.2]} 34... Rxe1 {[%clk 0:00:06.2]}
35. Nfxe1 {[%clk 0:01:22.1]} 35... h4 {[%clk 0:00:06.2]} 36. Nf3 {[%clk
0:01:13.2]} 36... h3 {[%clk 0:00:07.1]} 37. Nh2 {[%clk 0:01:11.7]} 37... Ne4+
{[%clk 0:00:04.8]} 38. Kd5 {[%clk 0:01:09.9]} 38... Nd2 {[%clk 0:00:04.7]} 39.
Ne1 {[%clk 0:01:07.3]} 39... Kd7 {[%clk 0:00:05]} 40. Nef3 {[%clk 0:01:06.5]}
40... Nxf3 {[%clk 0:00:05]} 41. Nxf3 {[%clk 0:01:04.9]} 41... Ne7+ {[%clk
0:00:05.3]} 42. Ke5 {[%clk 0:01:01.6]} 42... Ng6+ {[%clk 0:00:05.2]} 43. Kf5
{[%clk 0:01:01.2]} 43... Nh4+ {[%clk 0:00:05.7]} 44. Kxf4 {[%clk 0:01:00.4]}
44... Ng2+ {[%clk 0:00:02.5]} 45. Kg3 {[%clk 0:01:00.1]} 45... Ne3 {[%clk
0:00:03.2]} 46. Kxh3 {[%clk 0:00:58.5]} 46... Nd1 {[%clk 0:00:03.7]} 47. Ne5+
{[%clk 0:00:49.4]} 47... Kc7 {[%clk 0:00:03.7]} 48. Nd3 {[%clk 0:00:50.3]} 48...
Kd6 {[%clk 0:00:02.8]} 49. Kg4 {[%clk 0:00:49.8]} 49... Kd5 {[%clk 0:00:02.9]}
50. Kf4 {[%clk 0:00:47.7]} 50... Kc4 {[%clk 0:00:02.9]} 51. Ke4 {[%clk
0:00:48.1]} 51... a5 {[%clk 0:00:02.1]} 52. Ne5+ {[%clk 0:00:40.1]} 52... Kb5
{[%clk 0:00:02.7]} 53. Nd3 {[%clk 0:00:35.5]} 53... Kc4 {[%clk 0:00:02.3]} 54.
Ne5+ {[%clk 0:00:28.9]} 54... Kb5 {[%clk 0:00:02.5]} 55. Kd3 {[%clk 0:00:19.2]}
1-0

[Event "*** Titled Tuesday Blitz"]
[Site "Chess.com"]
[Date "2021.03.30"]
[Round "4"]
[White "Grineva_Marianna"]
[Black "SARGISMV"]
[Result "0-1"]
[WhiteElo "2276"]
[BlackElo "2458"]
[TimeControl "180+1"]
[EndTime "10:40:00 PDT"]
[Termination "SARGISMV won by resignation"]

1. e4 {[%clk 0:03:00.9]} 1... e6 {[%clk 0:02:59.9]} 2. d4 {[%clk 0:02:59.7]}
2... d5 {[%clk 0:03:00.8]} 3. Nd2 {[%clk 0:02:58.6]} 3... Nc6 {[%clk 0:03:00.2]}
4. c3 {[%clk 0:02:57.3]} 4... e5 {[%clk 0:02:59.9]} 5. Ngf3 {[%clk 0:02:40.5]}
5... exd4 {[%clk 0:02:57.2]} 6. cxd4 {[%clk 0:02:38.9]} 6... dxe4 {[%clk
0:02:57.5]} 7. Nxe4 {[%clk 0:02:38.7]} 7... Bb4+ {[%clk 0:02:57.5]} 8. Nc3
{[%clk 0:02:38.9]} 8... Nf6 {[%clk 0:02:53]} 9. Be3 {[%clk 0:02:39.1]} 9... O-O
{[%clk 0:02:51.1]} 10. Be2 {[%clk 0:02:35.6]} 10... Nd5 {[%clk 0:02:50.7]} 11.
Bd2 {[%clk 0:02:33.1]} 11... Re8 {[%clk 0:02:46.4]} 12. O-O {[%clk 0:02:30.4]}
12... Bf5 {[%clk 0:02:46]} 13. Rc1 {[%clk 0:02:27.8]} 13... Nxc3 {[%clk
0:02:41.1]} 14. Bxc3 {[%clk 0:02:23.9]} 14... Bd6 {[%clk 0:02:33.4]} 15. Re1
{[%clk 0:02:22.4]} 15... Be4 {[%clk 0:02:07.9]} 16. Qb3 {[%clk 0:02:05.1]} 16...
Bd5 {[%clk 0:01:56.3]} 17. Qa4 {[%clk 0:01:54.8]} 17... Qf6 {[%clk 0:01:54.5]}
18. Qb5 {[%clk 0:01:43.6]} 18... Rad8 {[%clk 0:01:50.5]} 19. Bd2 {[%clk
0:01:24.2]} 19... Nxd4 {[%clk 0:01:40.6]} 20. Nxd4 {[%clk 0:01:17.5]} 20... Qxd4
{[%clk 0:01:41.5]} 21. Bc3 {[%clk 0:01:05]} 21... Qf4 {[%clk 0:01:30]} 22. g3
{[%clk 0:00:54.4]} 22... Qe4 {[%clk 0:01:26.9]} 23. f3 {[%clk 0:00:53.1]} 23...
Qe3+ {[%clk 0:01:22.8]} 24. Kg2 {[%clk 0:00:53.2]} 24... Bc6 {[%clk 0:01:21.7]}
25. Qd3 {[%clk 0:00:51.9]} 25... Bxf3+ {[%clk 0:01:18.8]} 26. Kf1 {[%clk
0:00:42.1]} 26... Bxe2+ {[%clk 0:00:59.5]} 27. Qxe2 {[%clk 0:00:40.4]} 27...
Qxe2+ {[%clk 0:00:57]} 28. Rxe2 {[%clk 0:00:41.3]} 28... Rxe2 {[%clk 0:00:57]}
29. Kxe2 {[%clk 0:00:41.8]} 29... f6 {[%clk 0:00:57.6]} 30. Kf3 {[%clk 0:00:37]}
30... Kf7 {[%clk 0:00:58]} 31. h4 {[%clk 0:00:36.4]} 31... h5 {[%clk 0:00:57.9]}
32. Bd4 {[%clk 0:00:33.3]} 32... a6 {[%clk 0:00:57.2]} 33. Bc3 {[%clk 0:00:29]}
33... Re8 {[%clk 0:00:56.6]} 34. Rd1 {[%clk 0:00:28.1]} 34... Re6 {[%clk
0:00:55.9]} 35. Rd5 {[%clk 0:00:28.2]} 35... g6 {[%clk 0:00:54.8]} 36. Rd3
{[%clk 0:00:27.2]} 36... b5 {[%clk 0:00:52.5]} 37. a3 {[%clk 0:00:26.5]} 37...
Ke7 {[%clk 0:00:51.4]} 38. Rd5 {[%clk 0:00:22.2]} 38... c6 {[%clk 0:00:50.1]}
39. Rd3 {[%clk 0:00:22.2]} 39... Be5 {[%clk 0:00:46.9]} 40. Bb4+ {[%clk
0:00:21.1]} 40... Bd6 {[%clk 0:00:44.8]} 41. Bc3 {[%clk 0:00:20.1]} 41... c5
{[%clk 0:00:42.8]} 42. Bd2 {[%clk 0:00:19.3]} 42... c4 {[%clk 0:00:42.7]} 43.
Rd5 {[%clk 0:00:19]} 43... Be5 {[%clk 0:00:42.2]} 44. Bb4+ {[%clk 0:00:18]}
44... Ke8 {[%clk 0:00:40.1]} 45. Rd2 {[%clk 0:00:15.7]} 45... Rc6 {[%clk
0:00:38.6]} 46. Ba5 {[%clk 0:00:15.3]} 46... Kf7 {[%clk 0:00:36.9]} 47. Rd7+
{[%clk 0:00:14.5]} 47... Ke6 {[%clk 0:00:36.3]} 48. Rd2 {[%clk 0:00:14.9]} 48...
Kf5 {[%clk 0:00:36]} 49. Re2 {[%clk 0:00:14.9]} 49... c3 {[%clk 0:00:35.7]} 50.
bxc3 {[%clk 0:00:14]} 50... Bxc3 {[%clk 0:00:36.6]} 51. Bd8 {[%clk 0:00:13.8]}
51... Be5 {[%clk 0:00:35.5]} 52. Re3 {[%clk 0:00:13.1]} 52... Rc3 {[%clk
0:00:35]} 53. Rxc3 {[%clk 0:00:11.8]} 53... Bxc3 {[%clk 0:00:35.9]} 54. Bb6
{[%clk 0:00:11.2]} 54... a5 {[%clk 0:00:36.1]} 55. Bc5 {[%clk 0:00:11]} 55... b4
{[%clk 0:00:36.5]} 56. axb4 {[%clk 0:00:11.5]} 56... axb4 {[%clk 0:00:37.4]} 57.
Ke2 {[%clk 0:00:11.6]} 57... b3 {[%clk 0:00:37.2]} 58. Kd3 {[%clk 0:00:12]}
58... b2 {[%clk 0:00:37.5]} 59. Kc2 {[%clk 0:00:12]} 59... Be5 {[%clk 0:00:36]}
60. Bf2 {[%clk 0:00:12.3]} 60... Kg4 {[%clk 0:00:36.2]} 61. Be1 {[%clk
0:00:12.4]} 61... Kf3 {[%clk 0:00:35.3]} 62. Kb1 {[%clk 0:00:10.1]} 62... Bxg3
{[%clk 0:00:35.1]} 0-1

[Event "*** Titled Tuesday Blitz"]
[Site "Chess.com"]
[Date "2021.03.30"]
[Round "4"]
[White "Mazanchenko_Dmitry"]
[Black "dosto07"]
[Result "0-1"]
[WhiteElo "2208"]
[BlackElo "2411"]
[TimeControl "180+1"]
[EndTime "10:40:00 PDT"]
[Termination "dosto07 won on time"]

1. e4 {[%clk 0:03:00.9]} 1... e5 {[%clk 0:02:58.9]} 2. f3 {[%clk 0:03:00.6]}
2... Nf6 {[%clk 0:02:55.3]} 3. Ne2 {[%clk 0:03:00.7]} 3... d5 {[%clk 0:02:55.5]}
4. d3 {[%clk 0:03:00.3]} 4... Nc6 {[%clk 0:02:54.5]} 5. g3 {[%clk 0:02:59.7]}
5... Bc5 {[%clk 0:02:54.5]} 6. Bg2 {[%clk 0:02:57.4]} 6... h5 {[%clk 0:02:53.6]}
7. h3 {[%clk 0:02:54.8]} 7... Be6 {[%clk 0:02:52.7]} 8. c3 {[%clk 0:02:54]} 8...
a6 {[%clk 0:02:44.3]} 9. Nd2 {[%clk 0:02:52.4]} 9... Qd7 {[%clk 0:02:41.1]} 10.
Nb3 {[%clk 0:02:51.7]} 10... Bb6 {[%clk 0:02:40]} 11. d4 {[%clk 0:02:35.4]}
11... O-O-O {[%clk 0:02:32.7]} 12. dxe5 {[%clk 0:02:31.8]} 12... Nxe5 {[%clk
0:02:31.8]} 13. f4 {[%clk 0:02:18.8]} 13... Nc4 {[%clk 0:02:30.4]} 14. e5 {[%clk
0:02:17.6]} 14... Ne4 {[%clk 0:02:28.2]} 15. Bxe4 {[%clk 0:02:15.3]} 15... dxe4
{[%clk 0:02:27.9]} 16. Qxd7+ {[%clk 0:02:16]} 16... Rxd7 {[%clk 0:02:27.7]} 17.
Nbd4 {[%clk 0:02:11.9]} 17... e3 {[%clk 0:01:58.4]} 18. b3 {[%clk 0:01:59.7]}
18... Nd2 {[%clk 0:01:50.1]} 19. Bxd2 {[%clk 0:01:13]} 19... exd2+ {[%clk
0:01:49]} 20. Kd1 {[%clk 0:01:03.2]} 20... Bd5 {[%clk 0:01:47.6]} 21. Rf1 {[%clk
0:00:48.6]} 21... Bg2 {[%clk 0:01:43]} 22. Rf2 {[%clk 0:00:48.4]} 22... Bxh3
{[%clk 0:01:42.4]} 23. b4 {[%clk 0:00:48.8]} 23... Bg4 {[%clk 0:01:40.7]} 24.
Kxd2 {[%clk 0:00:48]} 24... Bxe2 {[%clk 0:01:31.1]} 25. Rxe2 {[%clk 0:00:48.9]}
25... Bxd4 {[%clk 0:01:30.7]} 26. cxd4 {[%clk 0:00:49.3]} 26... Rxd4+ {[%clk
0:01:31.3]} 27. Kc3 {[%clk 0:00:49.9]} 27... Rhd8 {[%clk 0:01:30.6]} 28. Re3
{[%clk 0:00:47.1]} 28... b5 {[%clk 0:01:22.3]} 29. a4 {[%clk 0:00:42]} 29...
Rc4+ {[%clk 0:01:20.9]} 30. Kb3 {[%clk 0:00:41.9]} 30... Rdd4 {[%clk 0:01:17.1]}
31. axb5 {[%clk 0:00:41.8]} 31... Rxb4+ {[%clk 0:01:16.8]} 32. Kc3 {[%clk
0:00:42]} 32... Rdc4+ {[%clk 0:01:09.2]} 33. Kd3 {[%clk 0:00:40.8]} 33... Rd4+
{[%clk 0:01:07.4]} 34. Kc3 {[%clk 0:00:36.4]} 34... axb5 {[%clk 0:01:06.3]} 35.
Ra8+ {[%clk 0:00:36.1]} 35... Kd7 {[%clk 0:01:05.3]} 36. f5 {[%clk 0:00:27.5]}
36... Rdc4+ {[%clk 0:01:03.9]} 37. Kd2 {[%clk 0:00:13.5]} 37... Rb2+ {[%clk
0:01:03.1]} 38. Kd1 {[%clk 0:00:13.5]} 38... Ra4 {[%clk 0:00:39.5]} 39. Rxa4
{[%clk 0:00:12.5]} 39... bxa4 {[%clk 0:00:38.5]} 40. Ra3 {[%clk 0:00:08.3]}
40... Rb4 {[%clk 0:00:36.3]} 41. Kd2 {[%clk 0:00:08]} 41... Kc6 {[%clk 0:00:36]}
42. Rc3+ {[%clk 0:00:06.1]} 42... Kd7 {[%clk 0:00:30.5]} 43. Rd3+ {[%clk
0:00:05.1]} 43... Ke7 {[%clk 0:00:30.3]} 44. Rc3 {[%clk 0:00:05.1]} 44... Kd7
{[%clk 0:00:26]} 45. Rd3+ {[%clk 0:00:05.1]} 45... Kc8 {[%clk 0:00:26.4]} 46. e6
{[%clk 0:00:01.8]} 46... fxe6 {[%clk 0:00:25.2]} 47. fxe6 {[%clk 0:00:02.7]}
47... Re4 {[%clk 0:00:24.6]} 48. Rd5 {[%clk 0:00:02.8]} 48... g6 {[%clk
0:00:22.7]} 49. Ra5 {[%clk 0:00:01.8]} 49... Kd8 {[%clk 0:00:20.8]} 50. Ra7
{[%clk 0:00:01.1]} 50... Rxe6 {[%clk 0:00:18.6]} 51. Kd3 {[%clk 0:00:02]} 51...
Rb6 {[%clk 0:00:16.4]} 52. Rxa4 {[%clk 0:00:02.9]} 52... Rb3+ {[%clk 0:00:15.2]}
53. Ke4 {[%clk 0:00:03.2]} 53... Rxg3 {[%clk 0:00:15.9]} 54. Kf4 {[%clk
0:00:03.7]} 54... Rg4+ {[%clk 0:00:15.6]} 55. Kf3 {[%clk 0:00:04.1]} 55... Rxa4
{[%clk 0:00:16]} 0-1

[Event "*** Titled Tuesday Blitz"]
[Site "Chess.com"]
[Date "2021.03.30"]
[Round "4"]
[White "PowerThinking2650"]
[Black "iamnotIM"]
[Result "1/2-1/2"]
[WhiteElo "2414"]
[BlackElo "2592"]
[TimeControl "180+1"]
[EndTime "10:40:02 PDT"]
[Termination "Game drawn by agreement"]

1. e4 {[%clk 0:03:00.9]} 1... c5 {[%clk 0:02:57.9]} 2. Nf3 {[%clk 0:03:00.3]}
2... d6 {[%clk 0:02:57.7]} 3. d4 {[%clk 0:03:00.9]} 3... cxd4 {[%clk 0:02:58.6]}
4. Nxd4 {[%clk 0:03:01.4]} 4... Nf6 {[%clk 0:02:59.2]} 5. Nc3 {[%clk 0:03:01.9]}
5... g6 {[%clk 0:02:59.7]} 6. Bc4 {[%clk 0:03:02.2]} 6... Bg7 {[%clk 0:02:59.8]}
7. Be3 {[%clk 0:03:02.8]} 7... Nc6 {[%clk 0:03:00]} 8. f3 {[%clk 0:03:03]} 8...
O-O {[%clk 0:03:00.3]} 9. Qd2 {[%clk 0:03:03.5]} 9... Bd7 {[%clk 0:03:00.1]} 10.
Bb3 {[%clk 0:03:03.7]} 10... Qa5 {[%clk 0:02:59.4]} 11. h4 {[%clk 0:02:59]}
11... Rfc8 {[%clk 0:02:59.1]} 12. h5 {[%clk 0:02:58.7]} 12... Nxh5 {[%clk
0:02:49.7]} 13. O-O-O {[%clk 0:02:57]} 13... Ne5 {[%clk 0:02:37.8]} 14. g4
{[%clk 0:02:51.6]} 14... Rxc3 {[%clk 0:02:21.4]} 15. bxc3 {[%clk 0:02:01]} 15...
Nf6 {[%clk 0:02:19.4]} 16. Bh6 {[%clk 0:01:48.5]} 16... Bxh6 {[%clk 0:02:01.1]}
17. Rxh6 {[%clk 0:01:43]} 17... Rc8 {[%clk 0:00:49.5]} 18. Rdh1 {[%clk
0:01:36.7]} 18... Qxc3 {[%clk 0:00:41.2]} 19. Qxc3 {[%clk 0:01:36.4]} 19... Rxc3
{[%clk 0:00:42.1]} 20. Kd2 {[%clk 0:01:36.8]} 20... Rc8 {[%clk 0:00:40.7]} 21.
a4 {[%clk 0:01:23]} 21... Kg7 {[%clk 0:00:39.4]} 22. R6h2 {[%clk 0:01:13]} 22...
b6 {[%clk 0:00:32.9]} 23. g5 {[%clk 0:01:07.2]} 23... Nh5 {[%clk 0:00:32]} 24.
Rxh5 {[%clk 0:00:51.7]} 24... gxh5 {[%clk 0:00:32.9]} 25. f4 {[%clk 0:00:50.8]}
25... Ng6 {[%clk 0:00:19.3]} 26. Ke3 {[%clk 0:00:48.1]} 26... Nxf4 {[%clk
0:00:16.5]} 27. Nf5+ {[%clk 0:00:27.7]} 27... Bxf5 {[%clk 0:00:13.6]} 28. exf5
{[%clk 0:00:28.6]} 28... e5 {[%clk 0:00:10]} 29. fxe6 {[%clk 0:00:20.4]} 29...
Nxe6 {[%clk 0:00:09.4]} 30. Rxh5 {[%clk 0:00:20.5]} 30... Rc5 {[%clk 0:00:07.5]}
31. Rh3 {[%clk 0:00:15.9]} 31... Nxg5 {[%clk 0:00:06.4]} 32. Rg3 {[%clk
0:00:15.9]} 32... h6 {[%clk 0:00:06.9]} 33. Kd4 {[%clk 0:00:15.8]} 33... a6
{[%clk 0:00:07.1]} 34. Bd5 {[%clk 0:00:15.9]} 34... b5 {[%clk 0:00:07.1]} 35. a5
{[%clk 0:00:14.2]} 35... Rc8 {[%clk 0:00:06.1]} 36. c3 {[%clk 0:00:14.2]} 36...
Rc7 {[%clk 0:00:05.8]} 37. Re3 {[%clk 0:00:14]} 37... Kf8 {[%clk 0:00:05.1]} 38.
Re1 {[%clk 0:00:12.6]} 38... Ne6+ {[%clk 0:00:04.4]} 39. Bxe6 {[%clk 0:00:11.9]}
39... fxe6 {[%clk 0:00:05.3]} 40. Rxe6 {[%clk 0:00:12.3]} 40... Rc4+ {[%clk
0:00:06]} 41. Kd5 {[%clk 0:00:08.4]} 41... Ra4 {[%clk 0:00:06.4]} 42. Rxh6
{[%clk 0:00:07.5]} 42... Rxa5 {[%clk 0:00:06.2]} 43. Rxd6 {[%clk 0:00:07.8]}
43... b4+ {[%clk 0:00:06]} 44. Kc4 {[%clk 0:00:07.3]} 44... bxc3 {[%clk
0:00:05.8]} 45. Kxc3 {[%clk 0:00:07.4]} 45... Ke7 {[%clk 0:00:06.5]} 46. Rh6
{[%clk 0:00:06.5]} 46... Kd7 {[%clk 0:00:06.7]} 47. Kb4 {[%clk 0:00:06.8]} 47...
Rb5+ {[%clk 0:00:06.8]} 48. Ka4 {[%clk 0:00:07]} 48... Re5 {[%clk 0:00:05.7]}
49. Rxa6 {[%clk 0:00:06.4]} 49... Re4+ {[%clk 0:00:05.8]} 50. Ka5 {[%clk
0:00:06.5]} 50... Re5+ {[%clk 0:00:04.8]} 51. Kb4 {[%clk 0:00:06.8]} 51... Re4+
{[%clk 0:00:05.1]} 52. Kc5 {[%clk 0:00:07.1]} 52... Re5+ {[%clk 0:00:04.9]}
1/2-1/2

[Event "*** Titled Tuesday Blitz"]
[Site "Chess.com"]
[Date "2021.03.30"]
[Round "4"]
[White "Das_Virus_2020"]
[Black "xurramid77"]
[Result "0-1"]
[WhiteElo "2485"]
[BlackElo "2648"]
[TimeControl "180+1"]
[EndTime "10:40:05 PDT"]
[Termination "xurramid77 won on time"]

1. e4 {[%clk 0:02:57.7]} 1... e5 {[%clk 0:02:59.9]} 2. Nc3 {[%clk 0:02:57.1]}
2... d6 {[%clk 0:02:59.9]} 3. g3 {[%clk 0:02:56.6]} 3... f5 {[%clk 0:02:59.7]}
4. d3 {[%clk 0:02:42.9]} 4... Nf6 {[%clk 0:02:59.2]} 5. Bg2 {[%clk 0:02:43]}
5... c6 {[%clk 0:02:58.7]} 6. Nge2 {[%clk 0:02:41.9]} 6... Be7 {[%clk
0:02:58.1]} 7. O-O {[%clk 0:02:41.2]} 7... O-O {[%clk 0:02:58.3]} 8. h3 {[%clk
0:02:40.1]} 8... b5 {[%clk 0:02:35.3]} 9. a3 {[%clk 0:02:38.6]} 9... a5 {[%clk
0:02:35.4]} 10. f4 {[%clk 0:02:34.8]} 10... Qb6+ {[%clk 0:02:34.3]} 11. Kh2
{[%clk 0:02:33.8]} 11... fxe4 {[%clk 0:02:25.8]} 12. dxe4 {[%clk 0:02:23.4]}
12... Nbd7 {[%clk 0:02:21.7]} 13. f5 {[%clk 0:02:14.2]} 13... Ba6 {[%clk
0:02:19.6]} 14. b4 {[%clk 0:02:01.7]} 14... Bb7 {[%clk 0:02:14.4]} 15. Bg5
{[%clk 0:01:47.7]} 15... axb4 {[%clk 0:02:09.3]} 16. axb4 {[%clk 0:01:48]} 16...
Rxa1 {[%clk 0:02:09.2]} 17. Qxa1 {[%clk 0:01:48.9]} 17... Ng4+ {[%clk
0:02:09.6]} 18. hxg4 {[%clk 0:01:46.6]} 18... Bxg5 {[%clk 0:02:10.5]} 19. Qd1
{[%clk 0:01:41.6]} 19... Rf6 {[%clk 0:01:34.5]} 20. Bf3 {[%clk 0:01:35.8]} 20...
Qc7 {[%clk 0:01:04.8]} 21. Ng1 {[%clk 0:01:14.4]} 21... Rh6+ {[%clk 0:01:04.4]}
22. Nh3 {[%clk 0:01:14.1]} 22... Nb6 {[%clk 0:00:46.8]} 23. Be2 {[%clk
0:01:13.6]} 23... d5 {[%clk 0:00:43.6]} 24. Kg2 {[%clk 0:01:05]} 24... Qe7
{[%clk 0:00:41.6]} 25. Nxg5 {[%clk 0:00:54.1]} 25... Qxg5 {[%clk 0:00:41.6]} 26.
Qc1 {[%clk 0:00:54.7]} 26... Qxc1 {[%clk 0:00:40.1]} 27. Rxc1 {[%clk 0:00:53.9]}
27... d4 {[%clk 0:00:39.9]} 28. Nd1 {[%clk 0:00:43.8]} 28... Rd6 {[%clk
0:00:38.6]} 29. Nf2 {[%clk 0:00:43.4]} 29... Na4 {[%clk 0:00:37]} 30. g5 {[%clk
0:00:26.4]} 30... c5 {[%clk 0:00:35.7]} 31. bxc5 {[%clk 0:00:24.3]} 31... Nxc5
{[%clk 0:00:35.7]} 32. Bf3 {[%clk 0:00:20.9]} 32... Ra6 {[%clk 0:00:29]} 33. Rb1
{[%clk 0:00:19.9]} 33... Bc6 {[%clk 0:00:29.5]} 34. Nd3 {[%clk 0:00:18.9]} 34...
Ra2 {[%clk 0:00:22.4]} 35. Nb4 {[%clk 0:00:15.8]} 35... Ra6 {[%clk 0:00:14.1]}
36. Nxc6 {[%clk 0:00:15.5]} 36... Rxc6 {[%clk 0:00:14]} 37. Rxb5 {[%clk
0:00:14.7]} 37... g6 {[%clk 0:00:13.1]} 38. f6 {[%clk 0:00:14.4]} 38... Ne6
{[%clk 0:00:12.8]} 39. Rb2 {[%clk 0:00:08]} 39... Nxg5 {[%clk 0:00:11.6]} 40.
Be2 {[%clk 0:00:08.3]} 40... Rxf6 {[%clk 0:00:09.9]} 41. Bd3 {[%clk 0:00:08.8]}
41... Kg7 {[%clk 0:00:09.4]} 42. Rb7+ {[%clk 0:00:08.1]} 42... Kh6 {[%clk
0:00:09.6]} 43. Re7 {[%clk 0:00:07.8]} 43... Nf3 {[%clk 0:00:09.1]} 44. Kh3
{[%clk 0:00:04.9]} 44... Kg5 {[%clk 0:00:09.1]} 45. Kg2 {[%clk 0:00:03.5]} 45...
Ne1+ {[%clk 0:00:09.3]} 46. Kh3 {[%clk 0:00:03.6]} 46... Nf3 {[%clk 0:00:08.7]}
47. Rxh7 {[%clk 0:00:02.9]} 47... Ne1 {[%clk 0:00:04.7]} 48. Re7 {[%clk
0:00:02.3]} 48... Nf3 {[%clk 0:00:03.2]} 49. Rh7 {[%clk 0:00:01.2]} 49... Ne1
{[%clk 0:00:03.3]} 50. Re7 {[%clk 0:00:01.2]} 50... Nxd3 {[%clk 0:00:03.7]} 0-1